Cogmind - Beta 13 @@@ ROGUE MODE // 2024.05.31 @ 06:32:12 Player: N00Bk1llr Result: Destroyed by as-69700 with Assembled Maul Performance ------------- Evolutions (0) 0 Regions Visited (2) 400 Robots Destroyed (18) 90 Value Destroyed (463) 463 Prototype IDs (2) 40 Alien Tech Used (0) 0 Bonus (0) 0 TOTAL SCORE: 993 Bonus ------- None Cogmind --------- Core Integrity 0/250 Matter 244/300 Energy 90/100 System Corruption 15% Temperature Cool (0) Movement Core (800) Ox15 Location -10/Mines Parts ------- > --- POWER (1) -------- (None) > --- PROPULSION (2) --- (None) > --- UTILITY (2) ------ High-capacity Storage Unit Light Armor Plating > --- WEAPON (2) ------- Grenade Launcher > --- INVENTORY (20) --- Ion Engine Light Nuclear Core Wheel Compact Wheel Improved Heat Sink Improved Heat Sink Medium Matter Pod (100) Signal Interpreter Tractor Beam Light Assault Rifle Light Assault Rifle Light Assault Rifle Light Cannon Light Cannon Light Cannon Light Cannon Light Cannon Peak State ------------ > --- POWER ------------ Light Ion Engine > --- PROPULSION ------- Light Treads Light Treads > --- UTILITY ---------- High-capacity Storage Unit Targeting Computer > --- WEAPON ----------- Particle Gun Assault Rifle > --- INVENTORY -------- Light Nuclear Core Wheel Compact Wheel Improved Heat Sink Medium Matter Pod Tractor Beam Light Assault Rifle Light Assault Rifle Light Assault Rifle Light Cannon Light Cannon Light Cannon Light Cannon Light Cannon Grenade Launcher Grenade Launcher [Rating: 10] Favorites ----------- Power Light Ion Engine Engine Light Ion Engine Propulsion Light Treads Treads Light Treads Leg Aluminum Leg Utility High-capacity Storage Unit Storage High-capacity Storage Unit Processor Targeting Computer Protection Light Armor Plating Weapon Assault Rifle Energy Gun Particle Gun Ballistic Gun Assault Rifle Launcher Grenade Launcher Build | -11 -10 -10 ------- Run | Yrd Mat Min Slots Evolved . | . . . Power . | . . . Propulsion . | . . . Utility . | . . . Weapon . | . . . Parts Attached 17 | 2 10 5 Power 2 | . 2 . Engine 2 | . 2 . Core . | . . . Reactor . | . . . Propulsion 7 | 2 3 2 Treads 5 | 2 3 . Leg 2 | . . 2 Wheel . | . . . Hover . | . . . Flight . | . . . Utility 3 | . 2 1 Device . | . . . Storage 1 | . 1 . Processor 1 | . 1 . Hackware . | . . . Protection 1 | . . 1 Artifact . | . . . Weapon 5 | . 3 2 Energy Gun 1 | . 1 . Energy Cannon . | . . . Ballistic Gun 2 | . 2 . Ballistic Cannon . | . . . Launcher 2 | . . 2 Special Weapon . | . . . Impact Weapon . | . . . Slashing Weapon . | . . . Piercing Weapon . | . . . Special Melee Weapon . | . . . Unidentified Prototypes . | . . . Parts Lost 9 | . 2 7 Power 2 | . 1 1 Propulsion 2 | . . 2 Utility 1 | . . 1 Weapon 4 | . 1 3 Highest Loss Streak 7 | . 2 7 To Critical Strikes 1 | . . 1 Average Slot Usage (%) 97 | . 97 97 Engine 13 | . 13 13 Treads 18 | . 27 . Leg 8 | . . 26 Storage 14 | . 14 14 Processor 12 | . 12 13 Energy Gun 13 | . 13 13 Ballistic Gun 14 | . 14 13 Naked Turns . | . . . Heaviest Build 48 | 12 48 48 Greatest Support 40 | 40 40 40 Greatest Overweight (x) 2 | . 2 2 Average Overweight (x) 1 | . . 1 Largest Inventory Capacity 20 | 8 20 20 Average Capacity 18 | 8 18 20 Most Carried 20 | 6 17 20 Average Carried 13 | 4 11 19 Final Capacity 20 | 8 20 20 Final Carried 17 | 5 17 17 Class Distribution -------------------- 100% | Mutant Dominant Class ---------------- Mutant | -10/Materials Mutant | -10/Mines Resources | -11 -10 -10 ----------- Run | Yrd Mat Min Matter Collected 563 | 226 302 35 Remotely . | . . . Salvage Created 713 | 91 503 119 Parts 36 | 4 28 4 Haulers Intercepted . | . . . Recyclers Shooed 2 | 1 1 . Parts Field Recycled . | . . . Retrieved Matter . | . . . Parts Self-Destructed . | . . . Prevented . | . . . Kills | -11 -10 -10 ------- Run | Yrd Mat Min Combat Hostiles Destroyed 19 | . 12 7 Guns 14 | . 12 2 AOE 4 | . . 4 Classes Destroyed 6 | 2 3 1 Worker 1 | . 1 . Tunneler 1 | 1 . . Recycler 2 | 1 1 . Swarmer 3 | . 3 . Grunt 11 | . 9 2 Assembled 5 | . . 5 Best Kill Streak 5 | 2 4 5 Combat Bots Only 5 | . 3 5 Max Kills in Single Turn 2 | 1 1 2 Gunslinging . | . . . Exploded 2 | . . 2 Melee . | . . . Uniques/NPCs Destroyed . | . . . Combat | -11 -10 -10 -------- Run | Yrd Mat Min Hostile Shots Fired 115 | . 67 48 Missed 36 | . 22 14 Damage Taken 1173 | . 536 637 Core 258 | . 89 169 Absorbed by Shields . | . . . Regen/Repaired (Parts) 47 | . 47 . Core Remaining (%) 100 | 100 . . Volleys Fired 75 | 6 56 13 Largest 2 | 2 2 2 Hottest 85 | 60 85 85 Shots Fired 143 | 12 109 22 Gun 139 | 12 109 18 Cannon . | . . . Launcher 4 | . . 4 Special . | . . . Kinetic 79 | 6 63 10 Thermal 60 | 6 46 8 Explosive 4 | . . 4 Electromagnetic . | . . . Robot Hit Streak 13 | 3 12 13 Robot Miss Streak 4 | 2 4 2 Penetration Max . | . . . Secondary Targets 4 | . 3 1 Max Gunslinging Chain 1 | . 1 1 Shots Hit Robots 102 | 7 77 18 Core Hits 47 | 3 27 17 Critical Kills . | . . . Critical Parts Destroyed 1 | . 1 . Critical Strikes 3 | . 1 2 Burn 2 | . . 2 Destroy 1 | . 1 . Melee Attacks . | . . . Impact . | . . . Slashing . | . . . Piercing . | . . . Sneak Attacks . | . . . Combat Hostiles . | . . . Follow-up Attacks . | . . . Damage Inflicted 1695 | 70 910 715 Guns 1154 | 70 876 208 Cannons . | . . . Explosions 507 | . . 507 Melee . | . . . Ramming 34 | . 34 . Kinetic 608 | 19 487 102 Thermal 546 | 51 389 106 Explosive 507 | . . 507 Electromagnetic . | . . . Impact . | . . . Slashing . | . . . Piercing . | . . . Highest Corruption 15 | . . 15 Average Corruption 14 | . . 14 Corruption Purged . | . . . Corruption Blocked . | . . . Effects 1 | . . 1 Misfires 1 | . . 1 Overload Shots . | . . . Overflow Damage 2 | . . 2 Projectiles . | . . . Explosions 2 | . . 2 Melee . | . . . Knockbacks 1 | . 1 . Impact 1 | . 1 . Kinetic . | . . . Secondary . | . . . Self-Inflicted Damage 59 | . . 59 Shots 2 | . . 2 Rammed 5 | . 5 . Targets Rammed 5 | . 5 . Kicked . | . . . Crushed . | . . . Highest Temperature 192 | 40 192 192 Average Temperature 54 | 17 49 83 Received Heat Transfer 459 | . 267 192 Siege Activations . | . . . Robots Corrupted . | . . . Combat Hostiles . | . . . Parts Fried . | . . . Impact Corruptions . | . . . Robots Melted 1 | . . 1 Combat Hostiles 1 | . . 1 Parts Melted . | . . . Heat Transferred 1404 | 125 872 407 Parts Sabotaged . | . . . Parts Stolen . | . . . Parts Stripped . | . . . Power Chain Reactions . | . . . Alert | -11 -10 -10 ------- Run | Yrd Mat Min Peak Influence 134 | 10 134 91 Initial 41 | . 6 41 Average 72 | 7 85 50 Maximum Alert Level . | . . . Low Security (%) 100 | 100 100 100 Level 1 . | . . . Level 2 . | . . . Level 3 . | . . . Level 4 . | . . . Level 5 . | . . . High Security . | . . . Max Security . | . . . Squads Dispatched 2 | . 2 . Investigation 2 | . 2 . Extermination . | . . . Reinforcement . | . . . Assault . | . . . Garrison . | . . . Intercept . | . . . Searches Triggered . | . . . Construction Impeded . | . . . Haulers Reinforced . | . . . Active Scanning Responses . | . . . Cargo Convoy Interrupts . | . . . Stealth | -11 -10 -10 --------- Run | Yrd Mat Min Distress Signals 3 | . 3 . Communications Jammed . | . . . Distress Signals . | . . . Times Spotted 36 | . 21 15 Peak Tracking Total 10 | . 4 10 Tactical Retreats . | . . . Traps | -11 -10 -10 ------- Run | Yrd Mat Min Traps Triggered 2 | . 2 . Indirectly . | . . . Trap Hack Attempts . | . . . Triggered . | . . . Disarmed . | . . . Reprogrammed . | . . . Reused . | . . . Traps Extracted . | . . . Installed . | . . . Triggered . | . . . Machines | -11 -10 -10 ---------- Run | Yrd Mat Min Machines Disabled . | . . . Max in Single Turn . | . . . Machines Repaired . | . . . Machines Dismantled . | . . . Machines Sabotaged . | . . . Overloaded Fab Kills . | . . . Hacking | -11 -10 -10 --------- Run | Yrd Mat Min Machines Accessed 10 | . 10 . Terminals 8 | . 8 . Fabricators . | . . . Repair Stations 1 | . 1 . Recycling Units 1 | . 1 . Scanalyzers . | . . . Garrison Access . | . . . Total Hacks 30 | . 30 . Successful 14 | . 14 . Failed 15 | . 15 . Catastrophic 2 | . 2 . Database Lockouts 1 | . 1 . Manual 17 | . 17 . Terminals 26 | . 26 . Fabricators . | . . . Repair Stations 2 | . 2 . Recycling Units 2 | . 2 . Scanalyzers . | . . . Garrison Access . | . . . Terminal Hacks 11 | . 11 . Robot Analysis 1 | . 1 . Prototype ID Bank 1 | . 1 . Branch Access Points 1 | . 1 . Alert Level 1 | . 1 . Transport Status 1 | . 1 . Recall Investigation 1 | . 1 . Hauler Manifests 1 | . 1 . Registered Components 1 | . 1 . Zone Layout 3 | . 3 . Fabricator Hacks . | . . . Repair Station Hacks 2 | . 2 . Scan Component 1 | . 1 . Repair 1 | . 1 . Recycling Unit Hacks . | . . . Scanalyzer . | . . . Garrison Access Hacks . | . . . Unauthorized Hacks 1 | . 1 . Terminals . | . . . Fabricators . | . . . Repair Stations . | . . . Recycling Units 1 | . 1 . Tunnel 1 | . 1 . Scanalyzers . | . . . Garrison Access . | . . . Data Cores Recovered . | . . . Used . | . . . Hacking Detections 9 | . 9 . Full Trace Events 2 | . 2 . Feedback Events . | . . . Feedback Blocked . | . . . Robot Schematics Acquired . | . . . Robots Built . | . . . Authchips . | . . . Time . | . . . Total Robot Build Rating . | . . . Part Schematics Acquired . | . . . Parts Built . | . . . Authchips . | . . . Time . | . . . Total Part Build Rating . | . . . Parts Repaired 1 | . 1 . Time 26 | . 26 . Parts Recycled . | . . . Recycled Matter . | . . . Retrieved Matter . | . . . Retrieved Components . | . . . Parts Scanalyzed . | . . . Part Schematics Acquired . | . . . Parts Damaged . | . . . Bothacking | -11 -10 -10 ------------ Run | Yrd Mat Min Used RIF Installer . | . . . Robots Hacked . | . . . Non-combat . | . . . Combat . | . . . Robot Hacks Applied . | . . . Relay Couplers Released . | . . . Fabnet Peak Effective % . | . . . Robots Rewired . | . . . Allies Hacked . | . . . Hacks Repelled . | . . . Allies | -11 -10 -10 -------- Run | Yrd Mat Min Total Allies 1 | . . 1 Largest Group 1 | . . 1 Highest-Rated Group 31 | . . 31 Highest-Rated Ally 31 | . . 31 Total Orders . | . . . Ally Attacks . | . . . Total Damage . | . . . Kills . | . . . Allies Corrupted . | . . . Allies Melted . | . . . Intel | -11 -10 -10 ------- Run | Yrd Mat Min Robot Analysis Total 1 | . 1 . Derelict Logs Recovered 1 | . . 1 Drone Launches . | . . . Drone Recoveries . | . . . Exploration | -11 -10 -10 ------------- Run | Yrd Mat Min Turns Passed 2270 | 55 1501 714 Spaces Moved 833 | 22 554 257 Core . | . . . Treads 581 | 22 554 5 Legs 252 | . . 252 Wheels . | . . . Hover . | . . . Flight . | . . . Fastest Speed 160 | 160 160 240 Average Speed 237 | 160 230 260 Slowest Speed 320 | 160 320 320 Overloaded Moves . | . . . Propulsion Burnouts . | . . . Robots Hopped . | . . . Cave-ins Triggered . | . . . Exploration Rate (%) 49 | 3 84 60 Regions Visited 2 Branch Regions 1 Pre-discovered Areas 2 | . 1 1 Known Exits Taken 1 | . 1 . Unknown Exits Taken 1 | 1 . . Scrap Searched 2 | . . 2 Spaces Dug 8 | . . 8 Terrain Destroyed 14 | . . 14 Melee . | . . . Projectile . | . . . AOE 14 | . . 14 Terrain Rammed . | . . . Walls Destroyed . | . . . Machines Disabled . | . . . Actions | -11 -10 -10 --------- Run | Yrd Mat Min Total 986 | 32 672 282 Wait 31 | . 31 . Move 831 | 21 553 257 Hop . | . . . Pick Up 18 | 1 14 3 Fast Attach 7 | . 5 2 Attach 8 | 2 3 3 Detach 3 | . 1 2 Swap 2 | . 2 . Drop 6 | 2 2 2 Fire 75 | 6 56 13 Melee . | . . . Ram . | . . . Kick . | . . . Crush 5 | . 5 . Escape Stasis . | . . . Rewire . | . . . Trap . | . . . Miscellaneous . | . . . Route ------- -11/Scrapyard -10/Materials (discovered 5 exits: [*Mat x3] / *Min x2) -10/Mines History --------- Turn | Location | Event 16 | -11/Scrapyard | Discovered new exit (range 2) 56 | -11/Scrapyard | Entered Materials 301 | -10/Materials | Build established: Mutant 362 | -10/Materials | Repaired Lgt. Treads 448 | -10/Materials | Discovered new exit (range 4) 522 | -10/Materials | Identified exit to Mines 919 | -10/Materials | Discovered new exit (range 14) 1329 | -10/Materials | Central database locked down 1358 | -10/Materials | Discovered new exit (range 4) 1557 | -10/Materials | Entered Mines 1608 | -10/Mines | Received a Mining Laser from a helpful Derelict 2228 | -10/Mines | Assembled infested the area 2248 | -10/Mines | System corruption reached 10% 2252 | -10/Mines | Core integrity fell below 50% 2266 | -10/Mines | Core integrity fell below 20% 2271 | -10/Mines | Destroyed by as-69700 with Assembled Maul Last Messages --------------- 02247_ Knocked back. 02251_ Targeting Computer destroyed. 02251_ System corrupted by crushing effect (+5). 02252_ Y-45 Defender destroyed. 02253_ System corrupted: FCS attempts to trigger Assault Rifle. 02253_ System corrupted: Assault Rifle misfires. 02254_ Y-45 Defender destroyed. 02258_ as-44564 destroyed. 02262_ Aluminum Leg destroyed. 02263_ as-43683 destroyed. 02265_ Critical hit (Destroy). 02265_ Aluminum Leg destroyed. 02265_ as-72595 destroyed. 02265_ as-12373 destroyed. 02265_ Assault Rifle destroyed. 02265_ Destroyed Assault Rifle. 02267_ Grenade Launcher destroyed. 02268_ as-31974 destroyed. 02269_ as-48353 destroyed. 02270_ as-97343 destroyed. Map ----- +----------------------------------------------------+ | ????# ?????# ##?####??# #???###???#??? | | ????# ????## ##????????# #?## ### #### | | ?????# ????## #???####### #?# ^ | | ??????# ???## #???# #?# # ^ #? | | ??????# ##### #???# ##### ### ^# #? | | ??????# #???# #???# ## #??? | | ??????# ###### ##???# ##??# ## ^ ## #? | | ??????# #????######???## !##?# ! ^ #? | | ??????# ##?????????#### ### !%! ####????? | | ??????# ##?????#### !####### #???????? | | ??????# ####?## #????# #???????? | | ?????## ### #???## #???????? | | ????## ##???# #???????? | | ????# !####### ###???????? | | ????# ! #####?# #?????????? | | ????# [ ##?????#= ####?????????? | | ????## ##### ##??????# %#????????????? | | ?????##### ##???## #???????# #????????????? | | ?????????####?????# #???????# #????????????? | | ??????????????????## #???????# #????????????? | | ??????????????????## #???????# #????????????? | | ?????????????????## #???????# ##???????????? | | ????????????????## #####???## ###########?? | | ????????????????# #### ##### # #?? | | ????????????????###### #?? | | ???????????????###?# @ #### #?? | | ??????????????##" # a t##??# ### | | ??????????????#"" [#= ####???# | | ??????????????#]!*% a= #??????# | | ??????????????#|! % =% ## #?????#### # | | ??????????????#"" *#[ # a ### #????????# # | | ??????????????##" ## #?## #????????# # | | ???????????????##### #??####????????# # | | ??????????????????# ##?????????????? | | ??????????????????# #??????????????? | | ??????????????????## #??????????????? | | ???????????????????## ## #??????????????? | | ????????????????????###### #??????????????? | | ?????????????????????????# ??????????????? | | ?????????????????????????# ?????????????? | | ?????????????????????????# ## ????????????? | | ?????????????????????????# #?##???????????? | | ?????????????????????????# #??????????????? | | ?????????????????????????? #??????????????? | | ?????????????????????????? ?????????????????? | | ?????????????????????????? ?????????????????? | | ?????????????????????????? ?????????????????? | | ?????????????????????????? ?????????????????? | | ?????????????????????????? ?????????????????? | | ?????????????????????????? ?????????????????? | +----------------------------------------------------+ Best States ------------- Heat Dissipation 25 Energy Generation 10 Energy Capacity 250 Matter Stores 300 Matter Capacity 300 Sight Range 16 Terrain Scan Density 10 Armor Coverage 150 Evasion (%) 40 Targeting Accuracy 5 Recoil Reduction 2 Item Schematics ----------------- None Robot Schematics ------------------ None Fabricated ------------ Nothing Alien Tech Used ----------------- None Achievements -------------- None Challenges ------------ None Game ------ Seed MediumMomentumInsulator Manual? 0 Play Time 00:10:38 Cumulative 63.1 hours Start 2024.05.31 @ 06:23:41 End 2024.05.31 @ 06:32:12 Sessions 1 Manual Loads 0 Difficulty Rogue Special Mode None Game No. 109 Rogue 87 Adventurer 22 Explorer 0 Win Type - Total 1 Types 1/0/0/0/0/0/0/0/0 Lore% 43 Gallery% 56 Achievement% 48 Wizard Run 0 Options --------- Layout 0 ASCII 0 Keyboard 0 Movement Numpad Keybinds 0 Fullscreen 2 Font 18/SmallcapsGlow Map View 76x50 Zoom Use 0% Tactical HUD 1 Map Filters NONE Filters NONE Steam 1 RUN: 8ebad866-ce54-4ab6-ab01-dcbd4b57b2c1